Cogmind - Beta 10.1 @@@ ROGUE MODE // 2020.09.23 @ 17:39:06 Player: Turbografx16 Result: Self-destructed Performance ------------- Evolutions (1) 500 Regions Visited (2) 400 Robots Destroyed (7) 35 Value Destroyed (214) 214 Prototype IDs (0) 0 Alien Tech Used (0) 0 Bonus (0) 0 TOTAL SCORE: 1149 Bonus ------- None Cogmind --------- Core Integrity 365/400 Matter 226/300 Energy 125/125 System Corruption 0% Temperature Cool (0) Movement Treading (160) Location -9/Materials Parts ------- > --- POWER (1) -------- Light Ion Engine > --- PROPULSION (2) --- Light Treads Light Treads > --- UTILITY (4) ------ Medium Storage Unit Large Storage Unit > --- WEAPON (2) ------- (None) > --- INVENTORY (14) --- Wheel Wheel Peak State ------------ > --- POWER ------------ Ion Engine > --- PROPULSION ------- Aluminum Leg Aluminum Leg > --- UTILITY ---------- Small Storage Unit Terrain Scanner > --- WEAPON ----------- EM Pulse Gun Assault Rifle > --- INVENTORY -------- Light Ion Engine Light Treads Light Treads Wheel Wheel Medium Laser [Rating: 7] Favorites ----------- Power Ion Engine Engine Ion Engine Propulsion Aluminum Leg Treads Light Treads Leg Aluminum Leg Utility Large Storage Unit Device Terrain Scanner Storage Large Storage Unit Weapon Assault Rifle Energy Gun Medium Laser Ballistic Gun Assault Rifle Build | -11 -10 -9 ------- Run | Scr Mat Mat Slots Evolved 2 | . . 2 Power . | . . . Propulsion . | . . . Utility 2 | . . 2 Weapon . | . . . Parts Attached 11 | . 7 4 Power 2 | . 1 1 Engine 2 | . 1 1 Core . | . . . Reactor . | . . . Propulsion 4 | . 1 3 Treads 3 | . . 3 Leg 1 | . 1 . Wheel . | . . . Hover . | . . . Flight . | . . . Utility 3 | . 3 . Device 1 | . 1 . Storage 2 | . 2 . Processor . | . . . Hackware . | . . . Protection . | . . . Artifact . | . . . Weapon 2 | . 2 . Energy Gun 1 | . 1 . Energy Cannon . | . . . Ballistic Gun 1 | . 1 . Ballistic Cannon . | . . . Launcher . | . . . Special Weapon . | . . . Impact Weapon . | . . . Slashing Weapon . | . . . Piercing Weapon . | . . . Special Melee Weapon . | . . . Unidentified Prototypes . | . . . Parts Lost 4 | . 1 3 Power 1 | . . 1 Propulsion . | . . . Utility . | . . . Weapon 3 | . 1 2 Highest Loss Streak 3 | . 1 3 Average Slot Usage (%) 88 | . 93 74 Engine 13 | . 14 10 Treads 5 | . . 21 Leg 21 | . 28 . Storage 21 | . 21 22 Energy Gun 12 | . 13 10 Ballistic Gun 13 | . 14 11 Naked Turns . | . . . Heaviest Build 33 | 10 33 33 Greatest Support 40 | 20 20 40 Greatest Overweight (x) 1 | . 1 . Average Overweight (x) . | . . . Largest Inventory Capacity 14 | 6 14 14 Average Capacity 10 | 6 9 14 Most Carried 6 | 6 6 5 Average Carried 4 | 6 5 2 Final Capacity 14 | 6 14 14 Final Carried 6 | 6 5 2 Class Distribution -------------------- 100% | Mutant Dominant Class ---------------- Mutant | -10/Materials Mutant | -9/Materials Resources | -11 -10 -9 ----------- Run | Scr Mat Mat Matter Collected 297 | 200 97 . Remotely . | . . . Salvage Created 253 | . 170 83 Parts 13 | . 10 3 Haulers Intercepted . | . . . Recyclers Shooed . | . . . Parts Field Recycled . | . . . Retrieved Matter . | . . . Parts Self-Destructed . | . . . Prevented . | . . . Kills | -11 -10 -9 ------- Run | Scr Mat Mat Combat Hostiles Destroyed 7 | . 4 3 Guns 7 | . 4 3 Classes Destroyed 3 | . 1 2 Swarmer 2 | . . 2 Grunt 4 | . 4 . Sentry 1 | . . 1 Best Kill Streak 2 | . 2 2 Combat Bots Only 2 | . 2 2 Max Kills in Single Turn 1 | . 1 1 Gunslinging . | . . . Exploded . | . . . Melee . | . . . Uniques/NPCs Destroyed . | . . . Combat | -11 -10 -9 -------- Run | Scr Mat Mat Damage Taken 522 | . 267 255 Core 81 | . 46 35 Absorbed by Shields . | . . . Core Remaining (%) 90 | 100 81 . Volleys Fired 27 | . 14 13 Largest 2 | . 2 2 Hottest 70 | . 70 70 Shots Fired 46 | . 26 20 Gun 46 | . 26 20 Cannon . | . . . Launcher . | . . . Special . | . . . Kinetic 27 | . 14 13 Thermal 10 | . 3 7 Explosive . | . . . Electromagnetic 9 | . 9 . Robot Hit Streak 14 | . 6 14 Robot Miss Streak 2 | . 2 1 Penetration Max . | . . . Secondary Targets . | . . . Shots Hit Robots 35 | . 18 17 Core Hits 11 | . 7 4 Critical Hits 2 | . 1 1 Critical Kills 1 | . 1 . Critical Parts Destroyed 1 | . . 1 Melee Attacks . | . . . Impact . | . . . Slashing . | . . . Piercing . | . . . Sneak Attacks . | . . . Combat Hostiles . | . . . Follow-up Attacks . | . . . Damage Inflicted 449 | . 239 210 Guns 449 | . 239 210 Cannons . | . . . Explosions . | . . . Melee . | . . . Ramming . | . . . Kinetic 231 | . 108 123 Thermal 113 | . 26 87 Explosive . | . . . Electromagnetic 105 | . 105 . Impact . | . . . Slashing . | . . . Piercing . | . . . Highest Corruption . | . . . Average Corruption . | . . . Corruption Purged . | . . . Overload Shots . | . . . Overflow Damage . | . . . Projectiles . | . . . Explosions . | . . . Melee . | . . . Knockbacks . | . . . Impact . | . . . Kinetic . | . . . Secondary . | . . . Self-Inflicted Damage . | . . . Shots . | . . . Rammed . | . . . Targets Rammed . | . . . Kicked . | . . . Crushed . | . . . Highest Temperature 33 | . 33 27 Average Temperature 14 | . 14 15 Received Heat Transfer 177 | . 123 54 Siege Activations . | . . . Robots Corrupted . | . . . Combat Hostiles . | . . . Parts Fried 1 | . 1 . Impact Corruptions . | . . . Robots Melted . | . . . Combat Hostiles . | . . . Parts Melted 1 | . . 1 Heat Transferred 333 | . 74 259 Parts Sabotaged . | . . . Parts Stolen . | . . . Parts Stripped . | . . . Power Chain Reactions . | . . . Missiles Intercepted . | . . . Alert | -11 -10 -9 ------- Run | Scr Mat Mat Peak Influence 139 | . 139 123 Initial 58 | . . 58 Average 77 | . 78 76 Maximum Alert Level . | . . . Low Security (%) 100 | 100 100 100 Level 1 . | . . . Level 2 . | . . . Level 3 . | . . . Level 4 . | . . . Level 5 . | . . . High Security . | . . . Max Security . | . . . Squads Dispatched . | . . . Investigation . | . . . Extermination . | . . . Reinforcement . | . . . Assault . | . . . Garrison . | . . . Intercept . | . . . Construction Impeded . | . . . Haulers Reinforced . | . . . Stealth | -11 -10 -9 --------- Run | Scr Mat Mat Distress Signals 1 | . 1 . Communications Jammed . | . . . Distress Signals . | . . . Times Spotted 17 | . 8 9 Peak Tracking Total 6 | . 4 6 Tactical Retreats 1 | . . 1 Traps | -11 -10 -9 ------- Run | Scr Mat Mat Traps Triggered 2 | . 2 . Indirectly . | . . . Trap Hack Attempts . | . . . Triggered . | . . . Disarmed . | . . . Reprogrammed . | . . . Reused . | . . . Traps Extracted . | . . . Installed . | . . . Triggered . | . . . Machines | -11 -10 -9 ---------- Run | Scr Mat Mat Machines Disabled . | . . . Max in Single Turn . | . . . Machines Sabotaged . | . . . Garrisons Compromised . | . . . Overloaded Fab Kills . | . . . Fab Network Shutdowns . | . . . Hacking | -11 -10 -9 --------- Run | Scr Mat Mat Machines Accessed 1 | . 1 . Terminals 1 | . 1 . Fabricators . | . . . Repair Stations . | . . . Recycling Units . | . . . Scanalyzers . | . . . Garrison Access . | . . . Total Hacks 3 | . 3 . Successful 1 | . 1 . Failed 2 | . 2 . Catastrophic . | . . . Database Lockouts . | . . . Manual 3 | . 3 . Terminals 3 | . 3 . Fabricators . | . . . Repair Stations . | . . . Recycling Units . | . . . Scanalyzers . | . . . Garrison Access . | . . . Terminal Hacks . | . . . Fabricator Hacks . | . . . Repair Station Hacks . | . . . Recycling Unit Hacks . | . . . Scanalyzer . | . . . Garrison Access Hacks . | . . . Unauthorized Hacks 1 | . 1 . Terminals 1 | . 1 . Botnet 1 | . 1 . Fabricators . | . . . Repair Stations . | . . . Recycling Units . | . . . Scanalyzers . | . . . Garrison Access . | . . . Data Cores Recovered . | . . . Used . | . . . Hacking Detections 1 | . 1 . Full Trace Events . | . . . Feedback Events . | . . . Feedback Blocked . | . . . Robot Schematics Acquired . | . . . Robots Built . | . . . Matter . | . . . Time . | . . . Total Robot Build Rating . | . . . Part Schematics Acquired . | . . . Parts Built . | . . . Matter . | . . . Time . | . . . Total Part Build Rating . | . . . Parts Repaired . | . . . Time . | . . . Parts Recycled . | . . . Recycled Matter . | . . . Retrieved Matter . | . . . Retrieved Components . | . . . Parts Scanalyzed . | . . . Part Schematics Acquired . | . . . Parts Damaged . | . . . Bothacking | -11 -10 -9 ------------ Run | Scr Mat Mat Used RIF Installer . | . . . Robots Hacked . | . . . Non-combat . | . . . Combat . | . . . Robot Hacks Applied . | . . . Relay Couplers Released . | . . . Robots Rewired . | . . . Allies Hacked . | . . . Hacks Repelled . | . . . Allies | -11 -10 -9 -------- Run | Scr Mat Mat Total Allies . | . . . Largest Group . | . . . Highest-Rated Group . | . . . Highest-Rated Ally . | . . . Total Orders . | . . . Ally Attacks . | . . . Total Damage . | . . . Kills . | . . . Allies Corrupted . | . . . Allies Melted . | . . . Intel | -11 -10 -9 ------- Run | Scr Mat Mat Robot Analysis Total . | . . . Derelict Logs Recovered . | . . . Drone Launches . | . . . Drone Recoveries . | . . . Exploration | -11 -10 -9 ------------- Run | Scr Mat Mat Turns Passed 488 | 4 361 123 Spaces Moved 252 | 4 206 42 Core . | . . . Treads 42 | . . 42 Legs 210 | 4 206 . Wheels . | . . . Hover . | . . . Flight . | . . . Fastest Speed 120 | 120 120 160 Average Speed 140 | 120 136 160 Slowest Speed 160 | 120 150 160 Overloaded Moves . | . . . Propulsion Burnouts . | . . . Robots Hopped . | . . . Cave-ins Triggered . | . . . Exploration Rate (%) 16 | 1 41 6 Regions Visited 2 Branch Regions . Pre-discovered Areas . | . . . Known Exits Taken . | . . . Unknown Exits Taken 2 | 1 1 . Scrap Searched . | . . . Spaces Dug . | . . . Terrain Destroyed . | . . . Melee . | . . . Projectile . | . . . AOE . | . . . Terrain Rammed . | . . . Walls Destroyed . | . . . Machines Disabled . | . . . Actions | -11 -10 -9 --------- Run | Scr Mat Mat Total 341 | 3 261 77 Wait 45 | . 29 16 Move 250 | 3 205 42 Hop . | . . . Pick Up 1 | . 1 . Fast Attach 4 | . 4 . Attach 4 | . 2 2 Detach . | . . . Swap 3 | . 1 2 Drop 7 | . 5 2 Fire 27 | . 14 13 Melee . | . . . Ram . | . . . Kick . | . . . Crush . | . . . Escape Stasis . | . . . Rewire . | . . . Trap . | . . . Miscellaneous . | . . . Route ------- -11/Scrapyard -10/Materials (discovered 2 exits: [*Mat] / [*Min]) -9/Materials History --------- Turn | Location | Event 1 | -11/Scrapyard | Discovered new exit (range 1) 5 | -11/Scrapyard | Entered Materials 301 | -10/Materials | Build established: Mutant 309 | -10/Materials | Discovered new exit (range 13) 351 | -10/Materials | Discovered new exit (range 10) 366 | -10/Materials | Entered another Materials area 366 | -9/Materials | Evolved 2 slots: Utility x2 489 | -9/Materials | Self-destructed Last Messages --------------- 00399_ U-05 Engineer lays Concrete. 00402_ K-01 Serf collects debris. 00406_ U-05 Engineer lays Concrete. 00406_ T-07 Excavator is excavating. 00407_ U-05 Engineer lays Concrete. 00408_ U-05 Engineer builds a Wall. 00416_ K-01 Serf collects debris. 00443_ Ion Engine destroyed. 00443_ S-10 Pest destroyed. 00444_ K-01 Serf collects debris. 00449_ S-10 Pest destroyed. 00452_ R-06 Scavenger collects Lgt. Ion Engine. 00455_ K-01 Serf collects debris. 00456_ R-06 Scavenger collects Lgt. Assault Rifle. 00472_ Y-45 Defender suffers critical hit. 00472_ Destroyed Lgt. Treads. 00473_ Med. Laser destroyed. 00479_ Beam Rifle melted. 00479_ Y-45 Defender destroyed. 00487_ Assault Rifle destroyed. Map ----- +----------------------------------------------------+ | ?????????????????????????????????????????????????? | | ?????????????????????????????????????????????????? | | ?????????????????????????????????????????????????? | | ?????????????????????????????????????????????????? | | ?????????????????????????????????????????????????? | | ?????????????????????????????????????????????????? | | ?????????????????????????????????????????????????? | | ?????????????????????????????????????????????????? | | ????????????????????????? ?????????????????????? | | ????????????????????????? ????????????????????? | | ????????????????????????? ????????????????????? | | ????????????????????????? #????????????????????? | | ?????????????????????????s #????????????????????? | | ????????????????????????? s#??????##?##?????????? | | ????????????????????????+ #?????# ? #????????? | | ????????????????????????# #?????# ????????? | | ????????????????????????# #?????# T ????????? | | ????????????????????????# #?????? ?????????? | | ????????????????????????# #?????? ?????????? | | ????????????????????????# #??????# #?????????? | | ????????????????????????# #??????# #?????????? | | ????????????????????????# #?###### #?????????? | | ????????????????????????# #?# ## #?????????? | | ????????????????????????#% #?# ## #?????????? | | ???????????????????????##%% ### ## #?????????? | | ???????????????????????# @ ### ### ########### | | ???????????????????????# u t | | ???????????????????????# | | ????????????# ######## | | ???????? w ##########+####### | | ???????????????###############??????# #??# | | ????????????????????????????????????# #??# | | ????????????????????????????????????# #??# | | ????????????????????????????????????# #??# | | ????????????????????????????????????# #??# | | ????????????????????????????????????# #??# | | ????????????????????????????????????########??# | | ??????????????????????????????????????????????# | | ??????????????????????????????????????????????# | | ??????????????????????????????????????????????# | | ??????????????????????????????????????????????? | | ??????????????????????????????????????????????? | | ??????????????????????????????????????????????? | | ?????????????????????????????????????????????????? | | ?????????????????????????????????????????????????? | | ?????????????????????????????????????????????????? | | ?????????????????????????????????????????????????? | | ?????????????????????????????????????????????????? | | ?????????????????????????????????????????????????? | | ?????????????????????????????????????????????????? | +----------------------------------------------------+ Best States ------------- Heat Dissipation 28 Energy Generation 10 Energy Capacity 250 Matter Stores 300 Matter Capacity 300 Sight Range 16 Terrain Scan Range 14 Terrain Scan Density 10 Evasion (%) 40 Recoil Reduction 2 Item Schematics ----------------- None Robot Schematics ------------------ None Fabricated ------------ Nothing Alien Tech Used ----------------- None Achievements -------------- None Challenges ------------ None Game ------ Seed TeslaSigixNegator Manual? 0 Play Time 00:04:42 Cumulative 24.1 hours Start 2020.09.23 @ 17:35:20 End 2020.09.23 @ 17:39:06 Sessions 1 Manual Loads 0 Difficulty Rogue Special Mode None Game No. 44 Rogue 7 Adventurer 37 Explorer 0 Win Type - Total 1 Types 0/0/0/1/0/0/0/0/0 Lore% 22 Gallery% 34 Achievement% 39 Wizard Run 0 Options --------- ASCII 0 Keyboard 0 Movement Mouse Keybinds 0 Fullscreen 1 Font 20/SmallcapsGlow Map View 66x50 Tactical HUD 1 Map Filters NONE Filters NONE Steam 1 RUN: 77b50337-2530-4ee3-9254-9d3a7de73a71